bitfinex/quotes_BTCUSD_20250225
["timestamp","ask_amount","ask_price","bid_price","bid_amount"]
[1740468478805,3.22011219,90533.0,90532.0,11.759348]
[1740468479004,3.22011219,90533.0,90532.0,11.55173168]
[1740468479203,1.14692219,90533.0,90532.0,11.54947231]
[1740468479523,1.14692219,90533.0,90532.0,10.91159805]
[1740468479702,1.14692219,90533.0,90532.0,10.73420336]
[1740468480063,1.14692219,90533.0,90532.0,10.11035374]
[1740468480259,1.14692219,90533.0,90532.0,9.91625999]
[1740468480260,1.24242219,90533.0,90532.0,9.91625999]
[1740468480384,1.24242219,90533.0,90532.0,5.60512623]
[1740468480605,1.22242219,90533.0,90532.0,4.56798466]
[1740468480810,5.02435619,90533.0,90532.0,4.53565005]
[1740468481011,5.02435619,90533.0,90532.0,4.51961068]
[1740468481211,5.02435619,90533.0,90532.0,3.93626306]
[1740468481411,0.24956276,90533.0,90532.0,3.92505703]
[1740468481723,0.24956276,90533.0,90532.0,3.913851]
[1740468481724,1.14692219,90533.0,90532.0,3.913851]
[1740468481951,1.09692219,90533.0,90532.0,3.89122937]
[1740468482269,1.15115619,90533.0,90532.0,3.86004093]
[1740468482572,1.21862219,90533.0,90532.0,3.83762093]
[1740468482743,1.21862219,90533.0,90532.0,3.82641093]
[1740468482925,1.21862219,90533.0,90532.0,3.52594121]
[1740468483124,0.05522313,90558.0,90532.0,2.96548373]
[1740468483352,0.788837,90557.0,90542.0,0.08836606]
[1740468483561,1.06397913,90558.0,90542.0,0.02704545]
[1740468483736,0.62356278,90611.0,90532.0,2.89042948]
[1740468483737,0.05521744,90541.0,90532.0,2.89042948]
[1740468483935,0.05532141,90539.0,90533.0,0.08836606]
[1740468484142,0.05521744,90541.0,90533.0,0.0880871]
[1740468484394,0.05521744,90541.0,90533.0,0.07551428]
[1740468484589,0.05521744,90541.0,90533.0,0.03205705]
[1740468484743,0.99084756,90540.0,90532.0,2.58514481]
[1740468485087,0.40596834,90539.0,90532.0,2.51670104]
[1740468485284,0.02493079,90542.0,90532.0,2.50556407]
[1740468485492,0.02493079,90542.0,90532.0,1.91970058]
[1740468485719,0.02493079,90542.0,90532.0,1.89540164]
[1740468485928,0.27557,90541.0,90532.0,1.89381888]
[1740468486134,0.214533,90540.0,90532.0,1.89185572]
[1740468486283,0.02493079,90542.0,90532.0,1.89185572]
[1740468486488,0.363157,90541.0,90532.0,1.87945077]
[1740468486692,0.363157,90541.0,90532.0,1.7244691]
[1740468487168,0.10278,90540.0,90532.0,1.66329534]
[1740468487370,0.02493079,90542.0,90532.0,1.64299303]
[1740468487673,0.02493079,90542.0,90532.0,1.63180303]
[1740468487866,0.02493079,90542.0,90532.0,1.6253777]
[1740468488068,0.02493079,90542.0,90533.0,0.08821168]
[1740468488268,0.02493079,90542.0,90532.0,1.30776192]
[1740468488470,0.02493079,90542.0,90532.0,1.20954768]
[1740468488680,0.02493079,90542.0,90532.0,1.15618126]
[1740468488882,0.02493079,90542.0,90532.0,1.0855164]
[1740468489079,0.02494167,90559.0,90532.0,1.05983789]
[1740468489214,0.02494167,90559.0,90532.0,1.0401938]
[1740468489427,0.69464313,90558.0,90532.0,0.973008]
[1740468489679,1.253071,90557.0,90532.0,0.973008]
[1740468489817,1.37188303,90556.0,90532.0,0.91421397]
[1740468490018,0.05565794,90559.0,90532.0,0.68467445]
[1740468490225,0.05565794,90559.0,90532.0,0.52738968]
[1740468490416,0.05531526,90557.0,90532.0,0.4426353]
[1740468490621,0.0550706,90555.0,90532.0,0.39313115]
[1740468490841,0.05544374,90553.0,90532.0,0.09313115]
[1740468491079,0.15455945,90532.0,90520.0,0.48582244]
[1740468491280,0.2282595,90532.0,90520.0,0.20197476]
[1740468491460,0.22868963,90532.0,90520.0,0.15794793]
[1740468491632,0.22868963,90532.0,90520.0,0.10085101]
[1740468491834,0.22868963,90532.0,90520.0,0.10057122]
[1740468492045,0.22868963,90532.0,90520.0,0.09766251]
[1740468492394,0.22868963,90532.0,90520.0,0.07725271]
[1740468492600,0.22868963,90532.0,90502.0,0.08836606]
[1740468492978,0.23262279,90532.0,90502.0,0.08836606]
[1740468493158,0.23262279,90532.0,90522.0,0.08836606]
[1740468493375,0.23262279,90532.0,90522.0,0.0630871]
[1740468493802,0.23262279,90532.0,90501.0,0.2]
[1740468494254,2.547949,90531.0,90501.0,0.2]
[1740468494407,0.116894,90530.0,90501.0,0.2]
[1740468494611,1.518094,90530.0,90501.0,0.2]
[1740468494837,6.7791,90529.0,90501.0,0.2]
[1740468495038,5.05,90528.0,90501.0,0.2]
[1740468495240,1.7291,90527.0,90501.0,0.2]
[1740468495395,5.912,90526.0,90501.0,0.2]
[1740468495598,6.245,90525.0,90501.0,0.2]
[1740468495798,1.4563798,90524.0,90521.0,0.08836606]
[1740468495998,1.4563798,90524.0,90501.0,0.2]
[1740468496231,0.05559344,90521.0,90501.0,0.2]
[1740468497224,0.05508447,90520.0,90502.0,0.08836606]
[1740468497434,0.05508447,90520.0,90501.0,0.2]
[1740468498597,0.23219265,90521.0,90502.0,0.08836606]
[1740468498797,0.23219265,90521.0,90501.0,0.2]
[1740468499340,0.23219265,90521.0,90502.0,0.08836606]
[1740468499604,0.23219265,90521.0,90501.0,0.2]
[1740468499817,1.7291,90520.0,90501.0,0.2]
[1740468500020,1.7291,90520.0,90501.0,0.28836606]
[1740468500544,0.23219265,90521.0,90501.0,0.2]
[1740468501170,0.23045747,90521.0,90501.0,0.2]
[1740468502770,0.588409,90520.0,90501.0,0.2]
[1740468503194,0.23046546,90519.0,90501.0,0.2]
[1740468503400,5.05,90518.0,90501.0,0.2]
[1740468503600,1.437951,90518.0,90501.0,0.2]
[1740468503801,3.782584,90517.0,90501.0,0.2]
[1740468504001,5.05,90518.0,90501.0,0.2]
[1740468504363,1.122303,90517.0,90501.0,0.2]
[1740468504564,0.15425,90516.0,90501.0,0.2]
[1740468504815,0.850936,90515.0,90501.0,0.2]
[1740468505123,5.049374,90514.0,90501.0,0.2]
[1740468505440,0.330076,90513.0,90501.0,0.2]
[1740468505629,0.336283,90512.0,90501.0,0.2]
[1740468505824,0.356048,90518.0,90501.0,0.2]
[1740468505983,0.23046546,90519.0,90501.0,0.2]
[1740468506180,1.7291,90517.0,90501.0,0.2]
[1740468506383,0.3279,90517.0,90501.0,0.2]
[1740468506581,0.5341,90516.0,90501.0,0.2]
[1740468507536,1.195,90515.0,90501.0,0.2]
[1740468507745,2.494369,90514.0,90501.0,0.2]
[1740468507917,0.449969,90513.0,90501.0,0.2]
[1740468508127,1.4012,90514.0,90501.0,0.2]
[1740468508403,0.359177,90513.0,90501.0,0.2]
[1740468508761,0.44799,90513.0,90501.0,0.2008486]
[1740468509094,0.05575139,90512.0,90501.0,0.2008486]
[1740468509298,0.05534356,90510.0,90501.0,0.2008486]
[1740468509512,0.05555442,90508.0,90501.0,0.2008486]
[1740468509699,0.00224705,90503.0,90500.0,0.02425837]
[1740468509915,0.01762026,90500.0,90499.0,28.3054571]
[1740468510043,1.00770326,90500.0,90499.0,28.26826498]
[1740468510259,2.25020626,90500.0,90499.0,28.26826498]
[1740468510460,5.06699426,90500.0,90499.0,28.26826498]
[1740468510685,5.06699426,90500.0,90499.0,28.2664528]
[1740468510885,5.06742412,90500.0,90499.0,28.0167817]
[1740468511090,1.95781212,90500.0,90499.0,27.66670008]
[1740468511289,1.74715012,90500.0,90499.0,27.34928284]
[1740468511488,0.88005012,90500.0,90499.0,27.34293665]
[1740468511687,0.88005012,90500.0,90499.0,27.33210214]
[1740468511896,0.88005012,90500.0,90499.0,27.29812212]
[1740468512515,0.88005012,90500.0,90499.0,27.28607138]
[1740468512732,0.88021583,90500.0,90499.0,27.28607138]
[1740468513081,0.88021583,90500.0,90499.0,27.27097772]
[1740468513485,0.88021583,90500.0,90499.0,27.24591452]
[1740468513815,0.88021583,90500.0,90499.0,26.8594538]
[1740468514019,0.88021583,90500.0,90499.0,26.83074102]
[1740468514217,0.88021583,90500.0,90499.0,26.8125371]
[1740468514437,0.88021583,90500.0,90499.0,26.81225902]
[1740468514669,0.88021583,90500.0,90499.0,26.81088589]
[1740468514844,0.88021583,90500.0,90499.0,26.78943672]
[1740468515068,0.88021583,90500.0,90499.0,26.7709003]
[1740468515247,0.86259557,90500.0,90499.0,26.37701743]
[1740468515444,1.19559557,90500.0,90499.0,26.34884113]
[1740468515633,1.19559557,90500.0,90499.0,26.00077508]
[1740468515835,1.19559557,90500.0,90499.0,25.98439937]
[1740468516043,1.19559557,90500.0,90499.0,25.39955512]
[1740468516246,1.72969557,90500.0,90499.0,24.83954378]
[1740468516598,1.72969557,90500.0,90499.0,24.83780584]
[1740468516798,1.72969557,90500.0,90499.0,24.82621246]
[1740468517000,10.96259557,90500.0,90499.0,24.71900412]
[1740468517340,10.96259557,90500.0,90499.0,24.67491473]
[1740468517592,10.96259557,90500.0,90499.0,24.662855]
[1740468517834,10.96259557,90500.0,90499.0,24.64283683]
[1740468518021,10.96259557,90500.0,90499.0,24.63353164]
[1740468518531,10.96259557,90500.0,90499.0,24.62459968]
[1740468518670,10.96259557,90500.0,90499.0,24.59009593]
[1740468518877,10.96259557,90500.0,90499.0,24.51472765]
[1740468519132,10.96259557,90500.0,90499.0,24.48121475]
[1740468519308,10.96259557,90500.0,90499.0,24.48093667]
[1740468519710,10.42849557,90500.0,90499.0,24.46887793]
[1740468519912,10.42849557,90500.0,90499.0,24.46333217]
[1740468520330,10.10059557,90500.0,90499.0,24.39391147]
[1740468520659,10.10059557,90500.0,90499.0,24.00002558]
[1740468520839,10.10229317,90500.0,90499.0,23.97596995]
[1740468520978,10.10229317,90500.0,90499.0,23.96364877]
[1740468521199,10.10229317,90500.0,90499.0,23.87015495]
[1740468521651,10.10229317,90500.0,90499.0,23.72203001]
[1740468521852,10.10266611,90500.0,90499.0,23.37011373]
[1740468522277,10.10266611,90500.0,90499.0,23.36874555]
[1740468522451,10.10266611,90500.0,90499.0,23.33889669]
[1740468522657,10.10266611,90500.0,90499.0,23.30454709]
[1740468522856,10.10266611,90500.0,90499.0,23.29517606]
[1740468523257,10.10266611,90500.0,90499.0,23.2777747]
[1740468523735,10.10266611,90500.0,90499.0,23.06517287]
[1740468523910,10.10266611,90500.0,90499.0,23.062069]
[1740468524142,10.10266611,90500.0,90499.0,23.01045821]
[1740468524275,10.10266611,90500.0,90499.0,22.91163981]
[1740468524485,10.10266611,90500.0,90499.0,22.15178234]
[1740468524697,7.08099792,90500.0,90499.0,22.05768224]
[1740468524895,7.08099792,90500.0,90499.0,21.75768224]
[1740468525120,7.08099792,90500.0,90499.0,21.73526224]
[1740468525469,7.08099792,90500.0,90499.0,21.69747193]
[1740468525647,7.08099792,90500.0,90499.0,21.67505193]
[1740468525856,7.08099792,90500.0,90499.0,21.65645854]
[1740468525994,7.08116349,90500.0,90499.0,21.64524854]
[1740468526198,7.08116349,90500.0,90499.0,21.61663815]
[1740468526476,7.08116349,90500.0,90499.0,21.61062557]
[1740468526611,7.08116349,90500.0,90499.0,21.55464557]
[1740468526811,7.08116349,90500.0,90499.0,21.53222557]
[1740468527216,7.08116349,90500.0,90499.0,21.50980557]
[1740468527416,7.08116349,90500.0,90499.0,21.49859557]
[1740468527761,7.08116349,90500.0,90499.0,21.48738557]
[1740468527965,7.08116349,90500.0,90499.0,21.17617557]
[1740468528341,7.23116349,90500.0,90499.0,21.14620431]
[1740468528549,7.23116349,90500.0,90499.0,21.11541642]
[1740468528550,7.08116349,90500.0,90499.0,21.11541642]
[1740468528983,7.23116349,90500.0,90499.0,21.09299642]
[1740468529326,7.23116349,90500.0,90499.0,21.06438838]
[1740468529501,7.23116349,90500.0,90499.0,21.06142691]
[1740468529926,7.08116349,90500.0,90499.0,21.04376841]
[1740468530126,7.08116349,90500.0,90499.0,21.04066506]
[1740468530426,7.08116349,90500.0,90499.0,21.01381246]
[1740468530630,7.08116349,90500.0,90499.0,20.99305538]
[1740468531074,7.08116349,90500.0,90499.0,20.99026286]
[1740468532289,7.08116349,90500.0,90499.0,20.97287495]
[1740468532504,7.08116349,90500.0,90499.0,20.96528013]
[1740468532706,7.08116349,90500.0,90499.0,20.87037767]
[1740468533315,7.13116349,90500.0,90499.0,20.87037767]
[1740468533927,7.28116349,90500.0,90499.0,20.61941267]
[1740468534288,7.28116349,90500.0,90499.0,20.55028011]
[1740468534820,7.28116349,90500.0,90499.0,20.53049397]
[1740468535215,7.13116349,90500.0,90499.0,20.53049397]
[1740468535411,7.13116349,90500.0,90499.0,20.51310169]
[1740468536189,7.13116349,90500.0,90499.0,20.50552563]
[1740468536401,7.13005882,90500.0,90499.0,20.50552563]
[1740468536604,7.13005882,90500.0,90499.0,19.50552563]
[1740468537030,7.13005882,90500.0,90499.0,19.49047739]
[1740468538723,7.13005882,90500.0,90499.0,19.47578725]
[1740468541179,7.13005882,90500.0,90499.0,19.421617]
[1740468541380,7.13005882,90500.0,90499.0,19.35537574]
[1740468541980,7.13005882,90500.0,90499.0,19.31368636]
[1740468543467,7.13005882,90500.0,90499.0,19.31201542]
[1740468543686,7.13011739,90500.0,90499.0,19.29297314]
[1740468543889,7.13011739,90500.0,90499.0,19.2927523]
[1740468544083,7.13011739,90500.0,90499.0,19.2624863]
[1740468544291,7.13011739,90500.0,90499.0,19.15383631]
[1740468544502,7.13011739,90500.0,90499.0,19.15355735]
[1740468544862,7.13011739,90500.0,90499.0,19.15360735]
[1740468545910,7.13011739,90500.0,90499.0,19.14973192]
[1740468546112,7.13011739,90500.0,90499.0,19.14473192]
[1740468546850,6.56630283,90500.0,90499.0,19.14473192]
[1740468547402,6.56630283,90500.0,90499.0,19.14445296]
[1740468548511,6.56630283,90500.0,90499.0,19.14345296]
[1740468549534,6.56630283,90500.0,90499.0,19.143174]
[1740468549738,6.55839657,90500.0,90499.0,19.143174]
[1740468550178,6.55839657,90500.0,90499.0,19.13929237]
[1740468550832,6.55839657,90500.0,90499.0,19.03939408]
[1740468552181,6.55839657,90500.0,90499.0,19.03236746]
[1740468552576,6.55839657,90500.0,90499.0,18.974678]
[1740468552779,6.55839657,90500.0,90499.0,12.97271884]
[1740468553339,6.55839657,90500.0,90499.0,12.78724415]
[1740468553538,6.55839657,90500.0,90499.0,12.76505368]
[1740468554316,6.55839657,90500.0,90499.0,12.75921456]
[1740468554532,6.55839657,90500.0,90499.0,12.75563111]
[1740468554721,6.55839657,90500.0,90499.0,12.69168672]
[1740468554916,6.55839657,90500.0,90499.0,12.69113056]
[1740468555148,6.55839657,90500.0,90499.0,12.68745756]
[1740468555545,6.55839657,90500.0,90499.0,12.47936859]
[1740468555832,0.04629469,90500.0,90499.0,5.95344077]
[1740468556056,0.03909729,90500.0,90499.0,7.68204379]
[1740468556665,0.03909729,90500.0,90499.0,5.95064379]
[1740468558365,0.03909729,90500.0,90499.0,5.95036571]
[1740468559699,0.03909729,90500.0,90499.0,5.94498252]
[1740468560397,0.03909729,90500.0,90499.0,5.67412282]
[1740468562242,0.03909729,90500.0,90499.0,5.42412282]
[1740468562620,0.03909729,90500.0,90499.0,5.41453797]
[1740468562827,0.03909729,90500.0,90499.0,5.292815]
[1740468563080,0.03909729,90500.0,90499.0,5.01343942]
[1740468563661,0.03909729,90500.0,90499.0,5.00025031]
[1740468563975,0.03909729,90500.0,90499.0,4.98857029]
[1740468564512,0.03909729,90500.0,90499.0,4.90628632]
[1740468564713,0.03909729,90500.0,90499.0,4.90600824]
[1740468564918,0.03909729,90500.0,90499.0,4.76279254]
[1740468565136,0.03909729,90500.0,90499.0,4.45578022]
[1740468566195,0.03909729,90500.0,90499.0,4.45267805]
[1740468566845,0.04079489,90500.0,90499.0,4.43639754]
[1740468567048,0.04079489,90500.0,90499.0,4.42406203]
[1740468567245,0.04079489,90500.0,90499.0,4.39031817]
[1740468568974,0.04079489,90500.0,90499.0,4.33785912]
[1740468569219,0.04079489,90500.0,90491.0,0.221016]
[1740468569444,0.08839828,90492.0,90477.0,0.0018654]
[1740468569622,0.08839828,90492.0,90485.0,0.00121554]
[1740468570055,5.0,90490.0,90485.0,0.00121554]
[1740468572379,5.0,90490.0,90485.0,0.00121573]
[1740468573517,4.71879934,90490.0,90477.0,0.0018654]
[1740468573718,4.71879934,90490.0,90485.0,0.00121597]
[1740468574070,4.71879934,90490.0,90485.0,0.00121598]
[1740468574857,4.71879934,90490.0,90485.0,0.0012161]
[1740468575231,4.71566272,90490.0,90485.0,0.0012161]
[1740468575420,4.71566272,90490.0,90477.0,0.0018654]
[1740468575625,4.71566272,90490.0,90486.0,0.00121603]
[1740468575974,4.77165463,90490.0,90485.0,0.00121616]
[1740468576176,4.71566272,90490.0,90485.0,0.00121616]
[1740468578592,4.71566272,90490.0,90442.0,0.0451]
[1740468579314,4.71736052,90490.0,90442.0,0.0451]
[1740468580605,0.08839828,90489.0,90442.0,0.0451]
[1740468580759,0.05551414,90488.0,90442.0,0.0451]
[1740468580961,0.08839828,90489.0,90442.0,0.0451]
[1740468580962,0.055876,90489.0,90442.0,0.0451]
[1740468582008,0.08839828,90487.0,90442.0,0.0451]
[1740468582589,0.05519837,90486.0,90442.0,0.0451]
[1740468582770,0.055876,90489.0,90442.0,0.0451]
[1740468583728,0.05564171,90477.0,90442.0,0.0451]
[1740468584728,0.05564171,90477.0,90431.0,0.0008486]
[1740468584928,0.065139,90476.0,90431.0,0.0008486]
[1740468585151,0.05541855,90475.0,90431.0,0.0008486]
[1740468586901,0.38331855,90475.0,90431.0,0.0008486]
[1740468587278,0.38331855,90475.0,90434.0,0.02]
[1740468588105,0.38331855,90475.0,90440.0,0.02]
[1740468588505,0.38331855,90475.0,90439.0,0.02]
[1740468589037,0.38331855,90475.0,90451.0,0.02]
[1740468589261,0.055876,90489.0,90463.0,0.02]
[1740468589589,0.055876,90489.0,90440.0,0.0462]
[1740468589590,0.05581289,90487.0,90462.0,0.02]
[1740468589750,0.05581289,90487.0,90463.0,0.02]
[1740468590118,0.055876,90489.0,90470.0,0.0208482]
[1740468590324,0.055876,90489.0,90470.0,0.0008482]
[1740468592329,0.0016968,90477.0,90470.0,0.0008482]
[1740468592673,0.00138425,90477.0,90476.0,0.02]
[1740468592874,0.00138425,90477.0,90471.0,0.0497]
[1740468593112,0.00138425,90477.0,90474.0,0.0764]
[1740468593315,0.00387465,90488.0,90474.0,0.0764]
[1740468596179,0.00387465,90488.0,90471.0,0.03230672]
[1740468596297,4.75639924,90490.0,90466.0,28.3235735]
[1740468596500,4.75639924,90490.0,90466.0,28.25845058]
[1740468596815,4.75639924,90490.0,90466.0,28.25417541]
[1740468597040,0.14429382,90489.0,90466.0,28.21051729]
[1740468597362,0.14429382,90489.0,90466.0,28.13135623]
[1740468597597,0.055876,90489.0,90466.0,28.11946242]
[1740468597773,0.055876,90489.0,90466.0,28.07885398]
[1740468598000,4.75639924,90490.0,90466.0,28.02422673]
[1740468598189,4.75639924,90490.0,90468.0,0.08841782]
[1740468598432,4.75639924,90490.0,90479.0,0.08841782]
[1740468598643,4.75639924,90490.0,90489.0,0.07554743]
[1740468598847,4.75639924,90490.0,90489.0,0.06788472]
[1740468599263,4.75639924,90490.0,90489.0,0.082]
[1740468599556,4.75639924,90490.0,90489.0,0.1312]
[1740468599956,4.75639924,90490.0,90489.0,0.12959204]
[1740468600166,4.75639924,90490.0,90489.0,0.08579011]
[1740468600812,4.75639924,90490.0,90489.0,0.07679011]
[1740468601449,4.75639924,90490.0,90489.0,0.07629526]
[1740468601857,4.75639924,90490.0,90489.0,0.0492]
[1740468602062,4.75639924,90490.0,90466.0,28.06982673]
[1740468602467,0.04073652,90490.0,90466.0,28.06977683]
[1740468602672,0.04073652,90490.0,90467.0,0.08514823]
[1740468602874,0.04073652,90490.0,90466.0,28.04680363]
[1740468603175,0.08841782,90487.0,90466.0,27.66009671]
[1740468603371,0.08841782,90487.0,90466.0,27.64695189]
[1740468603614,0.08841782,90476.0,90466.0,27.61955344]
[1740468603831,0.08841782,90476.0,90466.0,27.48607348]
[1740468604040,0.08841782,90476.0,90466.0,27.48237577]
[1740468604248,0.08841782,90476.0,90466.0,27.20128297]
[1740468604448,0.08841782,90476.0,90466.0,27.19512209]
[1740468604677,0.08841782,90476.0,90466.0,27.18889409]
[1740468604886,0.04073652,90490.0,90466.0,27.18885409]
[1740468605096,0.00025202,90476.0,90466.0,27.18832148]
[1740468605301,0.08841782,90475.0,90466.0,27.15267186]
[1740468605502,0.08841782,90475.0,90466.0,27.14305238]
[1740468605741,0.00025202,90476.0,90466.0,27.13694145]
[1740468605955,0.00025202,90476.0,90466.0,27.08276495]
[1740468606611,0.00025202,90476.0,90469.0,0.08814582]
[1740468606826,0.00025202,90476.0,90467.0,0.04401413]
[1740468607112,0.00025202,90476.0,90467.0,0.04393983]
[1740468607354,0.00025202,90476.0,90468.0,0.08841782]
[1740468607598,0.00025202,90476.0,90468.0,0.07608435]
[1740468607836,0.00025202,90476.0,90468.0,0.07578776]
[1740468608088,0.00025202,90476.0,90466.0,27.05650626]
[1740468608362,0.00025202,90476.0,90466.0,26.76752392]
[1740468608591,0.00025202,90476.0,90466.0,26.7673314]
[1740468608832,0.00025202,90476.0,90466.0,26.7667386]
[1740468609069,0.00025202,90476.0,90468.0,0.08841782]
[1740468609313,0.00025202,90476.0,90466.0,26.74911086]
[1740468609558,0.00025202,90476.0,90466.0,26.74826783]
[1740468609809,0.00025202,90476.0,90466.0,26.60755701]
[1740468610052,0.00025202,90476.0,90466.0,26.60590075]
[1740468610566,0.00025202,90476.0,90466.0,26.60510075]
[1740468610798,0.00025202,90476.0,90466.0,26.59337462]
[1740468611039,0.02,90472.0,90466.0,26.59337462]
[1740468611275,0.00025202,90476.0,90466.0,26.59337462]
[1740468611276,0.08841782,90467.0,90466.0,26.18924802]
[1740468611538,0.10841782,90467.0,90466.0,26.18924802]
[1740468611789,0.0956075,90467.0,90466.0,26.09730202]
[1740468612049,0.0956075,90467.0,90466.0,26.08171584]
[1740468612299,0.0956075,90467.0,90466.0,25.71325957]
[1740468612536,0.0956075,90467.0,90466.0,25.3618396]
[1740468612762,0.04,90467.0,90466.0,15.26185527]
[1740468612996,0.04,90467.0,90466.0,15.12482886]
[1740468613282,0.04,90467.0,90466.0,14.68230802]
[1740468613620,0.04,90467.0,90466.0,14.6146569]
[1740468613812,0.04,90467.0,90466.0,14.54636131]
[1740468614005,0.04,90467.0,90466.0,14.54541048]
[1740468614208,0.04,90467.0,90466.0,14.21859234]
[1740468614325,0.04,90467.0,90466.0,14.18500487]
[1740468614523,0.04,90467.0,90466.0,14.16024559]
[1740468614732,0.04,90467.0,90466.0,14.15858749]
[1740468614951,0.04,90467.0,90466.0,14.15087749]
[1740468615187,0.04,90467.0,90466.0,14.09712304]
[1740468615362,0.04,90467.0,90466.0,14.0547309]
[1740468615564,0.02,90467.0,90466.0,14.0544537]
[1740468615789,0.04,90467.0,90466.0,14.04062508]
[1740468615996,0.04,90467.0,90466.0,14.0243619]
[1740468616312,0.04,90467.0,90466.0,13.695972]
[1740468616478,0.04,90467.0,90466.0,13.695172]
[1740468616641,0.06,90467.0,90466.0,13.695172]
[1740468616838,0.08,90467.0,90466.0,13.695172]
[1740468617092,0.08,90467.0,90466.0,13.68241969]
[1740468617288,0.11903872,90467.0,90466.0,13.68241969]
[1740468617492,0.11903872,90467.0,90466.0,13.54209191]
[1740468617691,0.03903872,90467.0,90466.0,13.27085849]
[1740468617866,0.03903872,90467.0,90466.0,13.21842265]
[1740468618264,0.03903872,90467.0,90466.0,12.77356388]
[1740468618491,0.03903872,90467.0,90466.0,12.72943062]
[1740468618770,0.07903872,90467.0,90466.0,12.65606802]
[1740468619060,0.07903872,90467.0,90466.0,12.57058297]
[1740468619252,0.07903872,90467.0,90466.0,12.57054297]
[1740468619673,0.07903872,90467.0,90466.0,12.53618148]
[1740468620082,0.07903872,90467.0,90466.0,12.53590948]
[1740468620227,0.07929074,90467.0,90466.0,12.39257783]
[1740468620430,0.07929074,90467.0,90466.0,12.35418917]
[1740468620660,0.07929074,90467.0,90466.0,12.19416944]
[1740468620850,0.07929074,90467.0,90466.0,12.09857791]
[1740468621268,0.07929074,90467.0,90466.0,12.09780391]
[1740468621443,0.07929074,90467.0,90466.0,11.89908606]
[1740468621645,0.07929074,90467.0,90466.0,11.88490368]
[1740468622346,0.07929074,90467.0,90466.0,11.78668957]
[1740468622555,0.07929074,90467.0,90466.0,11.38923664]
[1740468622757,0.07929074,90467.0,90466.0,11.34793869]
[1740468623164,0.07929074,90467.0,90466.0,11.3475423]
[1740468623362,0.07929074,90467.0,90466.0,11.34366874]
[1740468623583,0.07929074,90467.0,90466.0,11.20703737]
[1740468623790,0.07929074,90467.0,90466.0,10.92480962]
[1740468624319,0.07929074,90467.0,90466.0,10.92342524]
[1740468624486,0.07929074,90467.0,90466.0,10.88408605]
[1740468625394,0.05929074,90467.0,90466.0,10.88331205]
[1740468625626,0.05929074,90467.0,90466.0,10.8625878]
[1740468625832,0.05929074,90467.0,90466.0,10.72947294]
[1740468626109,0.07929074,90467.0,90466.0,10.72947294]
[1740468626626,0.07929074,90467.0,90466.0,10.56735763]
[1740468626877,0.07929074,90467.0,90466.0,10.2708817]
[1740468627115,0.07929074,90467.0,90466.0,10.23326222]
[1740468627819,0.07929074,90467.0,90466.0,10.12030784]
[1740468628040,0.08098754,90467.0,90466.0,10.12030784]
[1740468628557,0.08098754,90467.0,90466.0,9.97454002]
[1740468628793,0.08098754,90467.0,90466.0,9.97426282]
[1740468629335,0.08098754,90467.0,90466.0,9.94133246]
[1740468630307,0.08098754,90467.0,90466.0,9.94055846]
[1740468630831,0.08098754,90467.0,90466.0,9.94028126]
[1740468631307,0.10159504,90467.0,90466.0,9.93950726]
[1740468631535,0.10159504,90467.0,90466.0,9.93650726]
[1740468631788,0.08098754,90467.0,90466.0,9.92321725]
[1740468632266,0.08098754,90467.0,90466.0,9.92211725]
[1740468632808,0.06098754,90467.0,90466.0,9.92183917]
[1740468633050,0.46658505,90480.0,90466.0,9.92183917]
[1740468633323,0.02,90474.0,90467.0,0.0485]
[1740468633562,0.02,90471.0,90467.0,0.0485]
[1740468634065,0.02,90470.0,90467.0,0.01198797]
[1740468634311,0.02,90473.0,90467.0,0.01198797]
[1740468634545,0.02,90468.0,90467.0,0.01198797]
[1740468635297,0.01334606,90472.0,90467.0,0.01198797]
[1740468635773,0.01353462,90489.0,90466.0,9.90289416]
[1740468636014,0.02,90471.0,90466.0,9.86227073]
[1740468636294,0.02,90483.0,90466.0,9.86149673]
[1740468636544,0.01353462,90489.0,90467.0,0.076]
[1740468637023,0.46658505,90516.0,90467.0,0.076]
[1740468637243,0.0016968,90571.0,90467.0,0.076]
[1740468637244,0.08843052,90557.0,90467.0,0.076]
[1740468637540,0.00754957,90499.0,90467.0,0.076]
[1740468638262,0.08843052,90547.0,90467.0,0.07572192]
[1740468638263,0.00236463,90531.0,90467.0,0.07572192]
[1740468638743,0.00245879,90523.0,90467.0,0.07572192]
[1740468638970,0.08843052,90527.0,90468.0,0.0478]
[1740468639464,0.08843052,90537.0,90468.0,0.0478]
[1740468639708,0.08843052,90547.0,90468.0,0.0478]
[1740468639943,0.0008484,90499.0,90468.0,0.0478]
[1740468640190,0.00642153,90553.0,90468.0,0.04499254]
[1740468640455,0.00717955,90559.0,90468.0,0.04499254]
[1740468640939,3.612257,90520.0,90466.0,9.85131751]
[1740468641176,3.612257,90520.0,90467.0,0.0828]
[1740468641417,3.612257,90520.0,90444.0,0.25970296]
[1740468641654,3.61268713,90520.0,90444.0,0.24230603]
[1740468641892,5.05,90519.0,90444.0,0.24230603]
[1740468642316,3.088704,90518.0,90444.0,0.24230603]
[1740468642434,4.649185,90519.0,90444.0,0.24202795]
[1740468642635,0.08843052,90518.0,90444.0,0.24202795]
[1740468642834,5.05,90517.0,90444.0,0.24202795]
[1740468643460,5.05,90517.0,90444.0,0.23645939]
[1740468643905,5.05,90519.0,90445.0,0.04769]
[1740468644316,5.05,90519.0,90446.0,0.0808]
[1740468644534,0.08843052,90515.0,90446.0,0.0808]
[1740468644744,5.05,90514.0,90446.0,0.08052192]
[1740468644945,5.05,90519.0,90446.0,0.07851492]
[1740468645227,0.08843052,90516.0,90446.0,0.07282779]
[1740468645453,0.08843052,90496.0,90446.0,0.06720245]
[1740468645684,5.05,90495.0,90446.0,0.06173744]
[1740468645925,2.087271,90494.0,90446.0,0.06173744]
[1740468646195,5.05,90515.0,90446.0,0.06173744]
[1740468646428,0.08843052,90504.0,90446.0,0.06173744]
[1740468646664,5.05,90503.0,90446.0,0.06173744]
[1740468646912,0.08843052,90494.0,90446.0,0.06145936]
[1740468647147,0.08843052,90469.0,90446.0,0.04116211]
[1740468647381,0.08843052,90459.0,90445.0,0.04769]
[1740468647621,5.05870055,90458.0,90444.0,0.23645939]
[1740468647846,5.05,90457.0,90444.0,0.23091507]
[1740468648115,5.05,90457.0,90444.0,0.21961753]
[1740468648338,3.993238,90456.0,90444.0,0.20338303]
[1740468648575,2.6226326,90457.0,90444.0,0.19201196]
[1740468648798,3.893433,90456.0,90444.0,0.19201196]
[1740468649045,1.030845,90456.0,90444.0,0.18078183]
[1740468649268,2.50997,90456.0,90444.0,0.16522639]
[1740468649487,2.50997,90456.0,90444.0,0.15964475]